Workbook

Sheet Sheet1
B2: Round 1 | D2: Round 2 | F2: Round 3 | H2: Round 4 | J2: Round 5 | L2: Round 6 | N2: Round 7 | P2: Round 8 | R2: Round 9 | T2: Round 10 | W2: Scores | Y2: Position
A3: John Phillip | B3: 47.14 | C3: =$C$20/B3 -> 961.6037336 | D3: 50.14 | E3: =$E$20/D3 -> 965.0977264 | F3: 55.91 | G3: =G20/F3 -> 908.781971 | H3: 54.52 | I3: =$I$20/H3 -> 794.2039618 | J3: 61.08 | K3: =$K$20/J3 -> 781.9253438 | L3: 46.69 | M3: 1000 | N3: 61.84 | O3: =$O$20/N3 -> 769.4049159 | P3: 67.53 | Q3: =$Q$20/P3 -> 808.8257071 | R3: 63.98 | S3: =$S$20/R3 -> 818.2244451 | T3: 63.95 | U3: =$U$20/T3 -> 874.7458952 | W3: =C3+E3+G3+I3+K3+M3+O22+Q3+S3+U3 -> 7913.408784 | Y3: 5
A5: Ian Mason | B5: 52.93 | C5: =$C$20/B5 -> 856.4141319 | D5: 57.43 | E5: =$E$20/D5 -> 842.5909803 | F5: 65.24 | G5: =G20/F5 -> 778.8166769 | H5: 60.13 | I5: =$I$20/H5 -> 720.1064361 | J5: 68.05 | K5: =$K$20/J5 -> 701.8368846 | L5: 71.58 | M5: =$M$20/L5 -> 652.2771724 | N5: 52.63 | O5: =$O$20/N5 -> 904.0471214 | P5: 63.42 | Q5: =$Q$20/P5 -> 861.2425102 | R5: 58.66 | S5: =$S$20/R5 -> 892.4309581 | T5: 79.25 | U5: =$U$20/T5 -> 705.8675079 | W5: =C5+E5+G5+I5+K5+M22+O5+Q5+S5+U5 -> 7263.353207 | Y5: 8
A7: Mark Redsell | B7: 46.76 | C7: =$C$20/B7 -> 969.4183062 | D7: 48.39 | E7: 1000 | F7: 50.81 | G7: 1000 | H7: 59.16 | I7: =$I$20/H7 -> 731.913455 | J7: 57.86 | K7: =$K$20/J7 -> 825.440719 | L7: 50.56 | M7: =$M$20/L7 -> 923.4572785 | N7: 50.26 | O7: =$O$20/N7 -> 946.6772782 | P7: 63.63 | Q7: =$Q$20/P7 -> 858.4001257 | R7: 52.35 | S7: 1000 | T7: 58.54 | U7: =$U$20/T7 -> 955.5859242 | W7: =C7+E7+G7+I23+K7+M7+O7+Q7+S7+U7 -> 8478.979632 | Y7: 1
A9: Phil Taylor | B9: 53.38 | C9: =$C$20/B9 -> 849.1944549 | D9: 54.6 | E9: =$E$20/D9 -> 886.2637363 | F9: 60.07 | G9: =$G$20/F9 -> 845.8465124 | H9: 46.72 | I9: =$I$20/H9 -> 926.7979452 | J9: 57.83 | K9: =$K$20/J9 -> 825.8689262 | L9: 62.47 | M9: =$M$20/L9 -> 747.3987514 | N9: 55.98 | O9: =$O$20/N9 -> 849.9464094 | P9: 69.92 | Q9: =$Q$20/P9 -> 781.1784897 | R9: 74.89 | S9: =$S$20/R9 -> 699.025237 | T9: 77.72 | U9: =$U$20/T9 -> 719.7632527 | W9: =C9+E9+G9+I9+K9+M9+O9+Q9+U9+U23 -> 7432.258478 | Y9: 7
A11: William Fourrie | B11: 50.05 | C11: =$C$20/B11 -> 905.6943057 | D11: 55.71 | E11: =$E$20/D11 -> 868.6052773 | F11: 55.95 | G11: =$G$20/F11 -> 908.1322609 | H11: 43.3 | I11: 1000 | J11: 58.31 | K11: =$K$20/J11 -> 819.0704853 | L11: 54.33 | M11: =$M$20/L11 -> 859.3778759 | N11: 47.58 | O11: 1000 | P11: 56.42 | Q11: =$Q$20/P11 -> 968.0964197 | R11: 69.4 | S11: =$S$20/R11 -> 754.3227666 | T11: 62.56 | U11: =$U$20/T11 -> 894.1815857 | W11: =C11+E11+G11+I11+K11+M11+O11+Q11+S22+U11 -> 8223.158211 | Y11: 3
A13: Allen Elliott | B13: 51.33 | C13: =$C$20/B13 -> 883.1092928 | D13: 57.4 | E13: =$E$20/D13 -> 843.0313589 | F13: 57.16 | G13: =$G$20/F13 -> 888.9083275 | H13: 68.48 | I13: =$I$20/H13 -> 632.3014019 | J13: 56.6 | K13: =$K$20/J13 -> 843.8162544 | L13: 63.53 | M13: =$M$20/L13 -> 734.9283803 | N13: 68.05 | O13: =O20/N13 -> 699.1917708 | P13: 54.62 | Q13: 1000 | R13: 73.4 | S13: =$S$20/R13 -> 713.2152589 | T13: 60.55 | U13: =$U$20/T13 -> 923.8645747 | W13: =C13+E13+G13+I23+K13+M13+O13+Q13+S13+U13 -> 7530.065218 | Y13: 6
A15: Mike Evans | B15: 56.09 | C15: =$C$20/B15 -> 808.1654484 | D15: 50.77 | E15: =$E$20/D15 -> 953.1219224 | F15: 56.87 | G15: =$G$20/F15 -> 893.4411816 | H15: 48.2 | I15: =$I$20/H15 -> 898.340249 | J15: 47.76 | K15: 1000 | L15: 65.11 | M15: =$M$20/L15 -> 717.0941484 | N15: 54.26 | O15: =O20/N15 -> 876.8890527 | P15: 66.47 | Q15: =Q20/P15 -> 821.7240861 | R15: 66.66 | S15: =$S$20/R15 -> 785.3285329 | T15: 55.94 | U15: 1000 | W15: =C15+E15+G15+I15+K15+M22+O15+Q15+S15+U15 -> 8037.010473 | Y15: 4
A17: Bruce Hudson | B17: 59.7 | C17: =$C$20/B17 -> 759.2964824 | D17: 58.59 | E17: =$E$20/D17 -> 825.9088582 | F17: 63.91 | G17: =$G$20/F17 -> 795.0242529 | H17: 67.67 | I17: =$I$20/H17 -> 639.8699571 | J17: 73.92 | K17: =K20/J17 -> 646.1038961 | L17: 65.12 | M17: =$M$20/L17 -> 716.9840295 | N17: 64.29 | O17: =O20/N17 -> 740.0839944 | P17: 72.43 | Q17: =Q20/P17 -> 754.1074141 | R17: 67.98 | S17: =$S$20/R17 -> 770.0794351 | T17: 60.23 | U17: =U20/T17 -> 928.7730367 | W17: =C17+E17+G17+I22+K17+M17+O17+Q17+S17+U17 -> 6936.361399 | Y17: 9
A19: Peter Gunning | B19: 45.33 | C19: 1000 | D19: 57.83 | E19: =$E$20/D19 -> 836.7629258 | F19: 71.87 | G19: =$G$20/F19 -> 706.9709197 | H19: 55.6 | I19: =$I$20/H19 -> 778.7769784 | J19: 50.51 | K19: =K20/J19 -> 945.5553356 | L19: 52.07 | M19: =$M$20/L19 -> 896.6775495 | N19: 51.6 | O19: =O20/N19 -> 922.0930233 | P19: 55.83 | Q19: =Q20/P19 -> 978.3270643 | R19: 56.18 | S19: =S20/R19 -> 931.8262727 | T19: 57.95 | U19: =U20/T19 -> 965.3149267 | W19: =C19+E19+G21+I19+K19+M19+O19+Q19+S19+U19 -> 8255.334076 | Y19: 2
C20: =B19*1000 -> 45330 | E20: =D7*1000 -> 48390 | G20: =F7*1000 -> 50810 | I20: =H11*1000 -> 43300 | K20: =J15*1000 -> 47760 | M20: =L3*1000 -> 46690 | O20: =N11*1000 -> 47580 | Q20: =P13*1000 -> 54620 | S20: =R7*1000 -> 52350 | U20: =T15*1000 -> 55940
